Cogmind - Beta 9.6 @@@ ROGUE MODE // 2020.04.19 @ 00:11:21 Player: MistressMomoko Result: Destroyed by L-31 Rogue with Katana Performance ------------- Evolutions (1) 500 Regions Visited (3) 600 Robots Destroyed (16) 80 Value Destroyed (417) 417 Prototype IDs (2) 40 Alien Tech Used (0) 0 Bonus (0) 0 TOTAL SCORE: 1637 Bonus ------- None Cogmind --------- Core Integrity 0/400 Matter 300/300 Energy 400/400 System Corruption 1% Temperature Cool (0) Movement Core (150) Ox2 Location -9/Materials Parts ------- > --- POWER (1) -------- (None) > --- PROPULSION (2) --- (None) > --- UTILITY (4) ------ Small Storage Unit Large Battery > --- WEAPON (2) ------- (None) > --- INVENTORY (6) ---- (None) Peak State ------------ > --- POWER ------------ Ion Engine > --- PROPULSION ------- Improved Treads Improved Treads > --- UTILITY ---------- Small Storage Unit Large Battery High-capacity Matter Pod > --- WEAPON ----------- Grenade Launcher Mining Laser > --- INVENTORY -------- Particle Gun Proton Bomb Trap Proton Bomb Trap Proton Bomb Trap Proton Bomb Trap [Rating: 11] Favorites ----------- Power Ion Engine Engine Ion Engine Propulsion Aluminum Leg Treads Improved Treads Leg Aluminum Leg Utility Small Storage Unit Storage Small Storage Unit Weapon Assault Rifle Energy Gun Medium Laser Ballistic Gun Assault Rifle Launcher Grenade Launcher Special Weapon Mining Laser Build | -11 -10 -10 -9 ------- Run | Scr Mat Min Mat Slots Evolved 2 | . . . 2 Power . | . . . . Propulsion . | . . . . Utility 2 | . . . 2 Weapon . | . . . . Parts Attached 16 | 6 4 3 3 Power 3 | 1 . 1 1 Engine 3 | 1 . 1 1 Core . | . . . . Reactor . | . . . . Propulsion 4 | 2 2 . . Treads 2 | . 2 . . Leg 2 | 2 . . . Wheel . | . . . . Hover . | . . . . Flight . | . . . . Utility 3 | 1 1 . 1 Device . | . . . . Storage 3 | 1 1 . 1 Processor . | . . . . Hackware . | . . . . Protection . | . . . . Artifact . | . . . . Weapon 6 | 2 1 2 1 Energy Gun 2 | . 1 . 1 Energy Cannon . | . . . . Ballistic Gun 2 | 2 . . . Ballistic Cannon . | . . . . Launcher 1 | . . 1 . Special Weapon 1 | . . 1 . Impact Weapon . | . . . . Slashing Weapon . | . . . . Piercing Weapon . | . . . . Special Melee Weapon . | . . . . Unidentified Prototypes . | . . . . Parts Lost 12 | . 5 . 7 Power 3 | . 1 . 2 Propulsion 3 | . 1 . 2 Utility 1 | . . . 1 Weapon 5 | . 3 . 2 Highest Loss Streak 7 | . 4 . 7 Average Slot Usage (%) 91 | . 94 100 63 Engine 12 | . 13 14 8 Treads 11 | . . 28 13 Leg 14 | . 26 . . Storage 26 | . 25 28 28 Energy Gun 3 | . 5 . . Ballistic Gun 10 | . 20 . . Launcher 5 | . . 14 5 Special Weapon 5 | . . 14 6 Naked Turns . | . . . . Heaviest Build 20 | 12 17 17 20 Greatest Support 46 | 20 46 46 46 Greatest Overweight (x) 5 | . 4 . 5 Average Overweight (x) . | . . . . Largest Inventory Capacity 6 | 6 6 6 6 Average Capacity 5 | 5 6 6 6 Most Carried 6 | 6 6 6 6 Average Carried 4 | 3 5 2 2 Final Capacity 6 | 6 6 6 6 Final Carried 6 | 6 4 6 . Class Distribution -------------------- 100% | Mutant Dominant Class ---------------- Mutant | -10/Materials Mutant | -10/Mines Mutant | -9/Materials Resources | -11 -10 -10 -9 ----------- Run | Scr Mat Min Mat Matter Collected 565 | 181 179 170 35 Remotely . | . . . . Salvage Created 438 | . 179 168 91 Parts 22 | . 14 5 3 Haulers Intercepted . | . . . . Recyclers Shooed . | . . . . Parts Field Recycled . | . . . . Retrieved Matter . | . . . . Parts Self-Destructed . | . . . . Prevented . | . . . . Kills | -11 -10 -10 -9 ------- Run | Scr Mat Min Mat Combat Hostiles Destroyed 15 | . 8 5 2 Guns 8 | . 8 . . AOE 7 | . . 5 2 Classes Destroyed 3 | . 2 1 . Recycler 1 | . . 1 . Swarmer 7 | . 6 1 . Grunt 8 | . 2 4 2 Best Kill Streak 3 | . 3 3 2 Combat Bots Only 3 | . 3 2 2 Max Kills in Single Turn 2 | . 1 2 2 Gunslinging . | . . . . Exploded 2 | . . 2 2 Melee . | . . . . Uniques/NPCs Destroyed . | . . . . Combat | -11 -10 -10 -9 -------- Run | Scr Mat Min Mat Damage Taken 1807 | . 756 257 794 Core 648 | . 177 65 406 Absorbed by Shields . | . . . . Core Remaining (%) 51 | 100 . 3 . Volleys Fired 32 | . 21 9 2 Largest 2 | . 2 2 1 Hottest 130 | . 70 130 65 Shots Fired 51 | . 39 10 2 Gun 41 | . 39 . 2 Cannon . | . . . . Launcher 9 | . . 9 . Special 1 | . . 1 . Kinetic 30 | . 30 . . Thermal 12 | . 9 1 2 Explosive 9 | . . 9 . Electromagnetic . | . . . . Robot Hit Streak 9 | . 5 9 1 Robot Miss Streak 2 | . 2 1 1 Penetration Max . | . . . . Secondary Targets 4 | . 4 . . Max Gunslinging Chain 1 | . 1 . . Shots Hit Robots 30 | . 23 6 1 Core Hits 37 | . 17 11 9 Critical Hits . | . . . . Critical Kills . | . . . . Critical Parts Destroyed . | . . . . Melee Attacks . | . . . . Impact . | . . . . Slashing . | . . . . Piercing . | . . . . Sneak Attacks . | . . . . Combat Hostiles . | . . . . Follow-up Attacks . | . . . . Damage Inflicted 828 | . 293 403 132 Guns 283 | . 270 . 13 Cannons . | . . . . Explosions 509 | . . 403 106 Melee . | . . . . Ramming 36 | . 23 . 13 Kinetic 207 | . 207 . . Thermal 76 | . 63 . 13 Explosive 403 | . . 403 . Electromagnetic 106 | . . . 106 Impact . | . . . . Slashing . | . . . . Piercing . | . . . . Highest Corruption 1 | . 1 1 1 Average Corruption 1 | . 1 1 1 Corruption Purged . | . . . . Effects 1 | . 1 . . Message Errors 1 | . 1 . . Overload Shots . | . . . . Overflow Damage . | . . . . Projectiles . | . . . . Explosions . | . . . . Melee . | . . . . Knockbacks . | . . . . Impact . | . . . . Kinetic . | . . . . Secondary . | . . . . Self-Inflicted Damage 108 | . 6 61 41 Shots 7 | . . 5 2 Rammed 16 | . 5 . 11 Targets Rammed 20 | . 8 1 11 Kicked 3 | . 3 . . Crushed 1 | . . 1 . Highest Temperature 109 | . 109 66 36 Average Temperature 39 | . 41 40 20 Received Heat Transfer 474 | . 330 72 72 Siege Activations . | . . . . Robots Corrupted . | . . . . Combat Hostiles . | . . . . Parts Fried . | . . . . Impact Corruptions . | . . . . Robots Melted . | . . . . Combat Hostiles . | . . . . Parts Melted . | . . . . Heat Transferred 222 | . 185 . 37 Parts Sabotaged . | . . . . Parts Stolen . | . . . . Parts Stripped . | . . . . Power Chain Reactions 1 | . . . 1 Missiles Intercepted . | . . . . Alert | -11 -10 -10 -9 ------- Run | Scr Mat Min Mat Peak Influence 170 | . 130 170 91 Average Influence 71 | . 70 105 61 Maximum Alert Level . | . . . . Low Security (%) 100 | 100 100 100 100 Level 1 . | . . . . Level 2 . | . . . . Level 3 . | . . . . Level 4 . | . . . . Level 5 . | . . . . High Security . | . . . . Max Security . | . . . . Squads Dispatched 1 | . 1 . . Investigation 1 | . 1 . . Extermination . | . . . . Reinforcement . | . . . . Assault . | . . . . Garrison . | . . . . Intercept . | . . . . Construction Impeded . | . . . . Haulers Reinforced . | . . . . Stealth | -11 -10 -10 -9 --------- Run | Scr Mat Min Mat Distress Signals . | . . . . Communications Jammed . | . . . . Distress Signals . | . . . . Times Spotted 23 | . 15 5 3 Peak Tracking Total 5 | . 5 3 3 Tactical Retreats 1 | . . 1 . Traps | -11 -10 -10 -9 ------- Run | Scr Mat Min Mat Traps Triggered 1 | . 1 . . Indirectly . | . . . . Trap Hack Attempts . | . . . . Triggered . | . . . . Disarmed . | . . . . Reprogrammed . | . . . . Reused 2 | . . . 2 Traps Extracted . | . . . . Installed 2 | . . . 2 Triggered 2 | . . . 2 Machines | -11 -10 -10 -9 ---------- Run | Scr Mat Min Mat Machines Disabled 3 | . . 2 1 Max in Single Turn 2 | . . 2 1 Machines Sabotaged . | . . . . Garrisons Compromised . | . . . . Overloaded Fab Kills . | . . . . Fab Network Shutdowns . | . . . . Hacking | -11 -10 -10 -9 --------- Run | Scr Mat Min Mat Machines Accessed 4 | . 3 1 . Terminals 4 | . 3 1 . Fabricators . | . . . . Repair Stations . | . . . . Recycling Units . | . . . . Scanalyzers . | . . . . Garrison Access . | . . . . Total Hacks 7 | . 6 1 . Successful 6 | . 5 1 . Failed 1 | . 1 . . Catastrophic . | . . . . Database Lockouts . | . . . . Manual . | . . . . Terminals 7 | . 6 1 . Fabricators . | . . . . Repair Stations . | . . . . Recycling Units . | . . . . Scanalyzers . | . . . . Garrison Access . | . . . . Terminal Hacks 6 | . 5 1 . Record 1 | . 1 . . Prototype ID Bank 1 | . 1 . . Locate Traps 1 | . 1 . . Dispatch Records 2 | . 1 1 . Zone Layout 1 | . 1 . . Fabricator Hacks . | . . . . Repair Station Hacks . | . . . . Recycling Unit Hacks . | . . . . Scanalyzer . | . . . . Garrison Access Hacks . | . . . . Unauthorized Hacks . | . . . . Terminals . | . . . . Fabricators . | . . . . Repair Stations . | . . . . Recycling Units . | . . . . Scanalyzers . | . . . . Garrison Access . | . . . . Data Cores Recovered . | . . . . Used . | . . . . Hacking Detections 2 | . 2 . . Full Trace Events . | . . . . Feedback Events . | . . . . Feedback Blocked . | . . . . Robot Schematics Acquired . | . . . . Robots Built . | . . . . Matter . | . . . . Time . | . . . . Total Robot Build Rating . | . . . . Part Schematics Acquired . | . . . . Parts Built . | . . . . Matter . | . . . . Time . | . . . . Total Part Build Rating . | . . . . Parts Repaired . | . . . . Time . | . . . . Parts Recycled . | . . . . Recycled Matter . | . . . . Retrieved Matter . | . . . . Retrieved Components . | . . . . Parts Scanalyzed . | . . . . Part Schematics Acquired . | . . . . Parts Damaged . | . . . . Bothacking | -11 -10 -10 -9 ------------ Run | Scr Mat Min Mat Used RIF Installer . | . . . . Robots Hacked . | . . . . Non-combat . | . . . . Combat . | . . . . Robot Hacks Applied . | . . . . Relay Couplers Released . | . . . . Robots Rewired . | . . . . Allies Hacked . | . . . . Hacks Repelled . | . . . . Allies | -11 -10 -10 -9 -------- Run | Scr Mat Min Mat Total Allies . | . . . . Largest Group . | . . . . Highest-Rated Group . | . . . . Highest-Rated Ally . | . . . . Total Orders . | . . . . Ally Attacks . | . . . . Total Damage . | . . . . Kills . | . . . . Allies Corrupted . | . . . . Allies Melted . | . . . . Intel | -11 -10 -10 -9 ------- Run | Scr Mat Min Mat Robot Analysis Total . | . . . . Derelict Logs Recovered 2 | . . 2 . Drone Launches . | . . . . Drone Recoveries . | . . . . Exploration | -11 -10 -10 -9 ------------- Run | Scr Mat Min Mat Turns Passed 1134 | 115 545 322 152 Spaces Moved 650 | 93 305 183 69 Core 38 | 16 10 . 12 Treads 245 | . 5 183 57 Legs 367 | 77 290 . . Wheels . | . . . . Hover . | . . . . Flight . | . . . . Fastest Speed 50 | 50 120 160 150 Average Speed 136 | 107 124 160 160 Slowest Speed 300 | 120 250 160 300 Overloaded Moves . | . . . . Propulsion Burnouts . | . . . . Robots Hopped . | . . . . Cave-ins Triggered . | . . . . Exploration Rate (%) 24 | 4 45 42 6 Regions Visited 3 Branch Regions 1 Pre-discovered Areas . | . . . . Known Exits Taken . | . . . . Unknown Exits Taken 3 | 1 1 1 . Scrap Searched 1 | . . 1 . Spaces Dug . | . . . . Terrain Destroyed 70 | . . 64 6 Melee . | . . . . Projectile . | . . . . AOE 70 | . . 64 6 Actions | -11 -10 -10 -9 --------- Run | Scr Mat Min Mat Total 842 | 104 433 200 105 Wait 92 | . 80 . 12 Move 647 | 92 304 182 69 Hop . | . . . . Pick Up 20 | 6 8 5 1 Fast Attach 8 | 6 1 . 1 Attach 8 | . 3 3 2 Detach . | . . . . Swap . | . . . . Drop 13 | . 8 . 5 Fire 32 | . 21 9 2 Melee . | . . . . Ram 10 | . . . 10 Kick 8 | . 8 . . Crush 2 | . . 1 1 Escape Stasis . | . . . . Rewire . | . . . . Trap 2 | . . . 2 Miscellaneous . | . . . . Route ------- -11/Scrapyard -10/Materials -10/Mines -9/Materials (discovered 2 exits: Min x2) History --------- Turn | Location | Event 4 | -11/Scrapyard | Discovered new exit (range 15) 116 | -11/Scrapyard | Entered Materials 319 | -10/Materials | Build established: Mutant 422 | -10/Materials | Discovered new exit (range 10) 641 | -10/Materials | Core integrity fell below 50% 661 | -10/Materials | Entered Mines 689 | -10/Mines | Lost 4 parts (1p1n2w) 766 | -10/Mines | Core integrity fell below 20% 836 | -10/Mines | Learned Materials garrison access intel 890 | -10/Mines | Found a hidden stash of uninstalled traps 938 | -10/Mines | Discovered new exit (range 9) 983 | -10/Mines | Entered Materials 983 | -9/Materials | Evolved 2 slots: Utility x2 984 | -9/Materials | Identified exit to Mines 1109 | -9/Materials | Core integrity fell below 50% 1131 | -9/Materials | Core integrity fell below 20% 1132 | -9/Materials | Lost 7 parts (2p2n1u2w) 1135 | -9/Materials | Destroyed by L-31 Rogue with Katana Last Messages --------------- 01107_ Slammed into L-31 Rogue. 01108_ U-05 Engineer lays Concrete. 01108_ Slammed into L-31 Rogue. 01108_ Destabilizing: Core damaged (-8). 01109_ U-05 Engineer lays Concrete. 01110_ Slammed into L-31 Rogue. 01111_ U-05 Engineer lays Concrete. 01113_ R-06 Scavenger collects Particle Gun. 01114_ Slammed into L-31 Rogue. 01115_ U-05 Engineer lays Concrete. 01117_ R-06 Scavenger collects Sml. Laser. 01119_ U-05 Engineer lays Concrete. 01124_ U-05 Engineer builds a Wall. 01126_ Installed Proton Bomb Trap. 01127_ L-31 Rogue triggered Proton Bomb Trap. 01127_ A bubble of electromagnetic force engulfs the area. 01127_ Door malfunctions. 01130_ Slammed into L-31 Rogue. 01133_ U-05 Engineer builds a Wall. 01134_ Slammed into L-31 Rogue. Map ----- +----------------------------------------------------+ | | | ????????????????????????????????????? | | ????????????????????????????????????? | | ????????????????????????????????????? | | ????????????????????????????????????? | | ????????????????????????????????????? | | ????????????????????????????????????? | | ????????????????????????????????????? | | ????????????????????????????????????? | | ????????????????????????????????????? | | ????????????????????????????????????? | | ????????????????????????????????????? | | ????????????????????????????????????? | | ????????????????????????????????????? | | ????????????????????????????????????? | | ????????????????????????????????????? | | ????????????????????????????????????? | | ????????????????????????????????????? | | ????????????????????????????????????? | | ????????????????????????????????????? | | ?????????????????????????###########? | | ????????????????????###### #? | | ????????????????????# # ""% #? | | ????????????????????# # "% % #? | | ????????????????????# #% %% ## | | ????????????????????# %@% % ;# | | ????????????????????# %#l %## | | ????????????????????# # u u## | | ????????????????????# # ## | | ????????????????????# ############ | | ????????????????????# #????######? | | ????????????????????# #??????????? | | ????????????????????# & #??????????? | | ????????????????????# #??????????? | | ????????????????????# #??????????? | | ?????? ##### ##?????????? | | ??????# & #?????????? | | ??????# #?????????? | | ??????# T +?????????? | | ??????? !!! #?????????? | | ??????? !!! #?????????? | | ???????? !!! ###?????????? | | ???????? #???????????? | | ???????? #???????????? | | ????????? #???????????? | | ????????? """ #???????????? | | ?????????? """ #???????????? | | ??????????#### ?"" #???????????? | | ?????????????# ???" #???????????? | | ?????????????? ????? #???????????? | +----------------------------------------------------+ Best States ------------- Heat Dissipation 28 Energy Generation 10 Energy Capacity 550 Matter Stores 428 Matter Capacity 500 Sight Range 16 Terrain Scan Density 10 Evasion (%) 50 Recoil Reduction 2 Item Schematics ----------------- None Robot Schematics ------------------ None Fabricated ------------ Nothing Alien Tech Used ----------------- None Achievements -------------- Close Call Challenges ------------ None Game ------ Seed MappingPropulsionWand Manual? 0 Play Time 00:21:45 Cumulative 7.2 hours Start 2020.04.18 @ 23:49:09 End 2020.04.19 @ 00:11:21 Sessions 1 Manual Loads 0 Difficulty Rogue Special Mode None Game No. 27 Rogue 27 Adventurer 0 Explorer 0 Win Type - Total 0 Types 0/0/0/0/0/0/0 Lore% 12 Gallery% 17 Achievement% 15 Wizard Run 0 Options --------- ASCII 1 Keyboard 1 Movement Numpad Keybinds 0 Fullscreen 1 Font 18/X11Bold Map View 76x50 Tactical HUD 1 Map Filters NONE Filters NONE Steam 1 RUN: 324db1dc-7d0b-4883-9cd9-3d9fb2e6dc45